[Event "Late-Titled-Tuesday-Blitz-October-24-2023"]
[Site "Chess.com"]
[Date "2023.10.24"]
[Round "8"]
[White "UK_23"]
[Black "The_Straightforward_Rook"]
[Result "0-1"]
[WhiteElo "2395"]
[BlackElo "2567"]
[TimeControl "180+1"]
[EndTime "15:27:06 PDT"]
[Termination "The_Straightforward_Rook won by resignation"]

1. e4 {[%clk 0:02:07.7]} 1... e5 {[%clk 0:02:59.3]} 2. Nf3 {[%clk 0:02:07.6]}
2... Nc6 {[%clk 0:02:59.1]} 3. Bc4 {[%clk 0:02:08.2]} 3... Bc5 {[%clk
0:02:58.7]} 4. O-O {[%clk 0:02:07.8]} 4... Nf6 {[%clk 0:02:56.5]} 5. d3 {[%clk
0:02:08.1]} 5... a6 {[%clk 0:02:56.4]} 6. c3 {[%clk 0:02:08.1]} 6... Ba7 {[%clk
0:02:54.1]} 7. Bb3 {[%clk 0:02:08.2]} 7... d6 {[%clk 0:02:52.2]} 8. Nbd2 {[%clk
0:02:08.3]} 8... h6 {[%clk 0:02:52.2]} 9. Bc2 {[%clk 0:02:05.3]} 9... O-O {[%clk
0:02:49]} 10. h3 {[%clk 0:02:04.6]} 10... Ne7 {[%clk 0:02:47]} 11. Re1 {[%clk
0:02:00.6]} 11... Ng6 {[%clk 0:02:47.4]} 12. Nf1 {[%clk 0:01:58.6]} 12... Re8
{[%clk 0:02:47]} 13. Ng3 {[%clk 0:01:57.7]} 13... c6 {[%clk 0:02:47.4]} 14. d4
{[%clk 0:01:55.2]} 14... d5 {[%clk 0:02:30.7]} 15. Nxe5 {[%clk 0:01:36.6]} 15...
Nxe5 {[%clk 0:02:28.1]} 16. dxe5 {[%clk 0:01:36.8]} 16... Rxe5 {[%clk
0:02:18.5]} 17. Bf4 {[%clk 0:01:36.4]} 17... Re8 {[%clk 0:02:17.1]} 18. Qf3
{[%clk 0:01:22]} 18... dxe4 {[%clk 0:02:08.8]} 19. Nxe4 {[%clk 0:01:21.6]} 19...
Nxe4 {[%clk 0:02:09]} 20. Rxe4 {[%clk 0:01:21.3]} 20... Be6 {[%clk 0:02:02.6]}
21. Qg3 {[%clk 0:01:06.7]} 21... Kh8 {[%clk 0:01:25.5]} 22. Rd1 {[%clk
0:01:03.2]} 22... Bd5 {[%clk 0:01:15.4]} 23. Rxe8+ {[%clk 0:00:52.5]} 23... Qxe8
{[%clk 0:01:16.3]} 24. Be5 {[%clk 0:00:44.8]} 24... f6 {[%clk 0:01:02.1]} 25.
Qd3 {[%clk 0:00:38.2]} 25... Qg8 {[%clk 0:01:01.7]} 26. Bd4 {[%clk 0:00:32.6]}
26... Bxd4 {[%clk 0:01:00.3]} 27. Qxd4 {[%clk 0:00:33.5]} 27... Bxa2 {[%clk
0:00:57.2]} 28. Qd7 {[%clk 0:00:25.5]} 28... Bb3 {[%clk 0:00:52.3]} 29. Bxb3
{[%clk 0:00:17.8]} 29... Qxb3 {[%clk 0:00:53.2]} 30. Rd2 {[%clk 0:00:18.6]}
30... Rg8 {[%clk 0:00:42.4]} 31. Kh2 {[%clk 0:00:18.2]} 31... Qb5 {[%clk
0:00:40.6]} 32. b4 {[%clk 0:00:15.3]} 32... Qe5+ {[%clk 0:00:39.1]} 33. g3
{[%clk 0:00:14.8]} 33... Qxc3 {[%clk 0:00:39.3]} 34. Re2 {[%clk 0:00:12.3]}
34... Qxb4 {[%clk 0:00:35.1]} 35. Re7 {[%clk 0:00:12.9]} 35... Qc5 {[%clk
0:00:32.4]} 36. Kg2 {[%clk 0:00:13.2]} 36... Qd5+ {[%clk 0:00:32.4]} 37. Qxd5
{[%clk 0:00:12.9]} 37... cxd5 {[%clk 0:00:33.3]} 38. Rxb7 {[%clk 0:00:13.6]}
38... Ra8 {[%clk 0:00:28.1]} 39. Rd7 {[%clk 0:00:13.3]} 39... a5 {[%clk
0:00:29]} 40. Rxd5 {[%clk 0:00:13.9]} 40... a4 {[%clk 0:00:29.9]} 41. Rd2 {[%clk
0:00:14.2]} 41... a3 {[%clk 0:00:30.8]} 42. Ra2 {[%clk 0:00:14.9]} 42... Kh7
{[%clk 0:00:30.5]} 43. h4 {[%clk 0:00:15.3]} 43... Kg6 {[%clk 0:00:31]} 44. Kf3
{[%clk 0:00:16.2]} 44... Kf5 {[%clk 0:00:31.4]} 45. Ke3 {[%clk 0:00:15.1]} 45...
Kg4 {[%clk 0:00:31.3]} 46. Ke2 {[%clk 0:00:15.2]} 46... f5 {[%clk 0:00:28.6]}
47. Ke3 {[%clk 0:00:15]} 47... Ra4 {[%clk 0:00:23.5]} 48. Ke2 {[%clk 0:00:14.9]}
48... f4 {[%clk 0:00:22.6]} 49. gxf4 {[%clk 0:00:15.2]} 49... Kxf4 {[%clk
0:00:23.1]} 50. h5 {[%clk 0:00:14.7]} 50... Kg5 {[%clk 0:00:22.5]} 51. Kf3
{[%clk 0:00:15.2]} 51... Kxh5 {[%clk 0:00:22.9]} 52. Kg3 {[%clk 0:00:16.1]}
52... Kg5 {[%clk 0:00:23.2]} 53. f3 {[%clk 0:00:16.2]} 53... h5 {[%clk
0:00:23.2]} 54. Kf2 {[%clk 0:00:16.5]} 54... Kf4 {[%clk 0:00:23.4]} 55. Kg2
{[%clk 0:00:17.1]} 55... g5 {[%clk 0:00:23.4]} 56. Kf2 {[%clk 0:00:17.4]} 56...
h4 {[%clk 0:00:20]} 57. Kg2 {[%clk 0:00:17.3]} 57... Ke3 {[%clk 0:00:14.7]} 58.
Ra1 {[%clk 0:00:07.2]} 58... a2 {[%clk 0:00:14.7]} 59. Kh3 {[%clk 0:00:05.5]}
59... Kxf3 {[%clk 0:00:14.6]} 60. Rxa2 {[%clk 0:00:05.9]} 60... g4+ {[%clk
0:00:12.4]} 61. Kxh4 {[%clk 0:00:05.5]} 61... Rxa2 {[%clk 0:00:13]} 0-1

[Event "Late-Titled-Tuesday-Blitz-October-24-2023"]
[Site "Chess.com"]
[Date "2023.10.24"]
[Round "8"]
[White "MaxLeto"]
[Black "Ali_rastbod"]
[Result "0-1"]
[WhiteElo "2563"]
[BlackElo "2735"]
[TimeControl "180+1"]
[EndTime "15:27:08 PDT"]
[Termination "Ali_rastbod won by resignation"]

1. g4 {[%clk 0:02:41.2]} 1... d5 {[%clk 0:02:58.3]} 2. Bg2 {[%clk 0:02:40.5]}
2... Bxg4 {[%clk 0:02:58.9]} 3. c4 {[%clk 0:02:35.4]} 3... c6 {[%clk 0:02:57.6]}
4. Qb3 {[%clk 0:02:27.1]} 4... Nd7 {[%clk 0:02:51.6]} 5. Qxb7 {[%clk 0:02:21.9]}
5... Qc8 {[%clk 0:02:42.9]} 6. Qxc8+ {[%clk 0:02:11.4]} 6... Rxc8 {[%clk
0:02:43.8]} 7. d4 {[%clk 0:02:03.5]} 7... e6 {[%clk 0:02:36.4]} 8. h3 {[%clk
0:01:57.3]} 8... Bf5 {[%clk 0:02:16.4]} 9. Nc3 {[%clk 0:01:57.1]} 9... Ngf6
{[%clk 0:02:12.9]} 10. Nf3 {[%clk 0:01:55.2]} 10... Bb4 {[%clk 0:02:08.5]} 11.
Bd2 {[%clk 0:01:35.5]} 11... O-O {[%clk 0:02:06.4]} 12. Rc1 {[%clk 0:01:30.7]}
12... Nb6 {[%clk 0:02:00.7]} 13. cxd5 {[%clk 0:01:03.4]} 13... cxd5 {[%clk
0:02:01.6]} 14. Ne5 {[%clk 0:01:03.9]} 14... Nc4 {[%clk 0:01:53.3]} 15. Nxc4
{[%clk 0:01:02.7]} 15... Rxc4 {[%clk 0:01:54.2]} 16. e3 {[%clk 0:01:01.5]} 16...
Rfc8 {[%clk 0:01:50.6]} 17. Ke2 {[%clk 0:00:44.6]} 17... a5 {[%clk 0:01:33.1]}
18. a3 {[%clk 0:00:42.7]} 18... Be7 {[%clk 0:01:28.3]} 19. f3 {[%clk 0:00:16.2]}
19... a4 {[%clk 0:01:25]} 20. Rhe1 {[%clk 0:00:09.9]} 20... Bg6 {[%clk
0:01:24.6]} 21. Bf1 {[%clk 0:00:09.1]} 21... Rb8 {[%clk 0:01:17.8]} 22. Nd1
{[%clk 0:00:02.8]} 22... Rxc1 {[%clk 0:00:40.1]} 23. Bxc1 {[%clk 0:00:03.1]}
23... Rc8 {[%clk 0:00:41]} 24. Nc3 {[%clk 0:00:02.3]} 24... Bxa3 {[%clk
0:00:39.4]} 25. bxa3 {[%clk 0:00:01.5]} 25... Rxc3 {[%clk 0:00:38.7]} 26. Kf2
{[%clk 0:00:01]} 26... Bd3 {[%clk 0:00:36.8]} 27. Bxd3 {[%clk 0:00:01.1]} 27...
Rxd3 {[%clk 0:00:37.7]} 28. Ke2 {[%clk 0:00:01.4]} 28... Rb3 {[%clk 0:00:37.4]}
29. Bd2 {[%clk 0:00:01.1]} 29... h6 {[%clk 0:00:36.4]} 30. Bb4 {[%clk
0:00:01.5]} 30... Rb2+ {[%clk 0:00:34.5]} 31. Kd3 {[%clk 0:00:01.6]} 31... Nh5
{[%clk 0:00:34.7]} 32. Rc1 {[%clk 0:00:01.4]} 32... Ng3 {[%clk 0:00:32.4]} 33.
Rc8+ {[%clk 0:00:02.3]} 33... Kh7 {[%clk 0:00:31.9]} 34. Ra8 {[%clk 0:00:03.2]}
34... Nf5 {[%clk 0:00:30.5]} 35. Rxa4 {[%clk 0:00:03.2]} 35... Rb3+ {[%clk
0:00:30.9]} 36. Kd2 {[%clk 0:00:02.7]} 36... Nxe3 {[%clk 0:00:30.7]} 37. Ra7
{[%clk 0:00:03.4]} 37... Nc4+ {[%clk 0:00:30.6]} 38. Kc2 {[%clk 0:00:04]} 38...
Rb2+ {[%clk 0:00:31]} 39. Kc3 {[%clk 0:00:04.1]} 39... Kg6 {[%clk 0:00:31.9]}
40. a4 {[%clk 0:00:04.1]} 40... Rf2 {[%clk 0:00:31.3]} 41. Bc5 {[%clk
0:00:04.3]} 41... Rxf3+ {[%clk 0:00:31.6]} 42. Kb4 {[%clk 0:00:05]} 42... Rxh3
{[%clk 0:00:32.2]} 43. a5 {[%clk 0:00:05.4]} 43... Ra3 {[%clk 0:00:32.8]} 44. a6
{[%clk 0:00:05.6]} 44... Ra1 {[%clk 0:00:33.4]} 45. Kb5 {[%clk 0:00:06]} 45...
h5 {[%clk 0:00:32.5]} 46. Ra8 {[%clk 0:00:05.5]} 46... Kh7 {[%clk 0:00:32.1]}
47. a7 {[%clk 0:00:05.6]} 47... h4 {[%clk 0:00:29.2]} 48. Rf8 {[%clk 0:00:06]}
48... h3 {[%clk 0:00:28.7]} 49. a8=Q {[%clk 0:00:05.8]} 49... Rxa8 {[%clk
0:00:29.4]} 50. Rxa8 {[%clk 0:00:06.1]} 50... g5 {[%clk 0:00:20.9]} 51. Ra2
{[%clk 0:00:04.2]} 51... g4 {[%clk 0:00:21.5]} 52. Kb4 {[%clk 0:00:03.7]} 52...
Kg6 {[%clk 0:00:21.7]} 53. Kc3 {[%clk 0:00:03.3]} 53... g3 {[%clk 0:00:21]} 54.
Ba7 {[%clk 0:00:02.3]} 54... g2 {[%clk 0:00:20]} 55. Ra1 {[%clk 0:00:01.5]}
55... h2 {[%clk 0:00:20.5]} 56. Bb8 {[%clk 0:00:01.4]} 56... h1=Q {[%clk
0:00:20]} 57. Ra2 {[%clk 0:00:01.4]} 57... Qc1+ {[%clk 0:00:20]} 58. Rc2 {[%clk
0:00:01.5]} 58... Qxc2+ {[%clk 0:00:19.9]} 59. Kxc2 {[%clk 0:00:02.4]} 59...
g1=Q {[%clk 0:00:20.8]} 0-1

[Event "Late-Titled-Tuesday-Blitz-October-24-2023"]
[Site "Chess.com"]
[Date "2023.10.24"]
[Round "8"]
[White "sari07"]
[Black "Maluco_do_Natal_00"]
[Result "0-1"]
[WhiteElo "2233"]
[BlackElo "2039"]
[TimeControl "180+1"]
[EndTime "15:27:20 PDT"]
[Termination "Maluco_do_Natal_00 won by checkmate"]

1. Nf3 {[%clk 0:03:00.9]} 1... d5 {[%clk 0:02:59]} 2. g3 {[%clk 0:02:59.6]} 2...
c5 {[%clk 0:02:59.1]} 3. Bg2 {[%clk 0:03:00]} 3... Nc6 {[%clk 0:02:59.4]} 4. O-O
{[%clk 0:03:00.5]} 4... e5 {[%clk 0:02:59.7]} 5. c4 {[%clk 0:02:59.8]} 5... Nf6
{[%clk 0:02:54.6]} 6. cxd5 {[%clk 0:02:58.2]} 6... Nxd5 {[%clk 0:02:55.5]} 7.
Nc3 {[%clk 0:02:58.5]} 7... Be6 {[%clk 0:02:51.2]} 8. d3 {[%clk 0:02:50.4]} 8...
Be7 {[%clk 0:02:50.4]} 9. Ng5 {[%clk 0:02:43.2]} 9... Bxg5 {[%clk 0:02:41.2]}
10. Bxd5 {[%clk 0:02:25.9]} 10... Bxd5 {[%clk 0:02:26.9]} 11. Bxg5 {[%clk
0:02:24.3]} 11... f6 {[%clk 0:02:24.7]} 12. Be3 {[%clk 0:02:22]} 12... Nd4
{[%clk 0:02:20.6]} 13. Nxd5 {[%clk 0:01:50.2]} 13... Qxd5 {[%clk 0:02:19.1]} 14.
Bxd4 {[%clk 0:01:32.2]} 14... cxd4 {[%clk 0:02:05.1]} 15. Rc1 {[%clk 0:01:27.5]}
15... O-O {[%clk 0:01:56.8]} 16. Rc7 {[%clk 0:01:26.9]} 16... Rf7 {[%clk
0:01:51]} 17. Qc2 {[%clk 0:01:23.2]} 17... Qxa2 {[%clk 0:01:46.5]} 18. Rc8+
{[%clk 0:01:13]} 18... Rxc8 {[%clk 0:01:40.8]} 19. Qxc8+ {[%clk 0:01:13.9]}
19... Rf8 {[%clk 0:01:39.2]} 20. Qxb7 {[%clk 0:01:14.4]} 20... a5 {[%clk
0:01:34.9]} 21. Rc1 {[%clk 0:01:06.6]} 21... Qf7 {[%clk 0:01:14.4]} 22. Rc7
{[%clk 0:01:03.3]} 22... Qg6 {[%clk 0:01:08.3]} 23. Qd5+ {[%clk 0:00:57.5]}
23... Kh8 {[%clk 0:01:06.5]} 24. Qxa5 {[%clk 0:00:54.3]} 24... h5 {[%clk
0:01:06.5]} 25. Qc5 {[%clk 0:00:50.8]} 25... Ra8 {[%clk 0:01:01.3]} 26. h4
{[%clk 0:00:43.1]} 26... Qg4 {[%clk 0:00:54.2]} 27. Qc6 {[%clk 0:00:25]} 27...
Ra1+ {[%clk 0:00:21.2]} 28. Kg2 {[%clk 0:00:24.9]} 28... Qxe2 {[%clk 0:00:20.8]}
29. Rc8+ {[%clk 0:00:24.5]} 29... Kh7 {[%clk 0:00:19.6]} 30. Qe4+ {[%clk
0:00:17.1]} 30... Qxe4+ {[%clk 0:00:19.4]} 31. dxe4 {[%clk 0:00:18]} 31... Rb1
{[%clk 0:00:18.1]} 32. Rb8 {[%clk 0:00:15.7]} 32... d3 {[%clk 0:00:17.4]} 33.
Rd8 {[%clk 0:00:13.7]} 33... Rxb2 {[%clk 0:00:16.5]} 34. Rxd3 {[%clk 0:00:13.1]}
34... Kg6 {[%clk 0:00:16.4]} 35. Rc3 {[%clk 0:00:12.5]} 35... Re2 {[%clk
0:00:15.9]} 36. Kf3 {[%clk 0:00:12.6]} 36... Rd2 {[%clk 0:00:15.9]} 37. Re3
{[%clk 0:00:12.6]} 37... Rd4 {[%clk 0:00:15.8]} 38. g4 {[%clk 0:00:12.2]} 38...
hxg4+ {[%clk 0:00:15.6]} 39. Kxg4 {[%clk 0:00:13.1]} 39... f5+ {[%clk
0:00:12.5]} 40. Kf3 {[%clk 0:00:10.6]} 40... f4 {[%clk 0:00:11.7]} 41. Rb3
{[%clk 0:00:08.1]} 41... Kf6 {[%clk 0:00:09.7]} 42. Rb6+ {[%clk 0:00:06.8]}
42... Kf7 {[%clk 0:00:09.9]} 43. Kg4 {[%clk 0:00:06.1]} 43... Rxe4 {[%clk
0:00:08.9]} 44. Kf5 {[%clk 0:00:06.7]} 44... Re2 {[%clk 0:00:08.6]} 45. Rb7+
{[%clk 0:00:07]} 45... Kf8 {[%clk 0:00:07.1]} 46. Ke6 {[%clk 0:00:05.9]} 46...
g6 {[%clk 0:00:04.8]} 47. Kf6 {[%clk 0:00:04.5]} 47... Ke8 {[%clk 0:00:05]} 48.
Rb8+ {[%clk 0:00:04.6]} 48... Kd7 {[%clk 0:00:04.9]} 49. Kxg6 {[%clk 0:00:05]}
49... Rxf2 {[%clk 0:00:05.3]} 50. h5 {[%clk 0:00:05.9]} 50... Rg2+ {[%clk
0:00:05.1]} 51. Kf7 {[%clk 0:00:05.6]} 51... f3 {[%clk 0:00:04.8]} 52. h6 {[%clk
0:00:04.9]} 52... f2 {[%clk 0:00:05.1]} 53. Rb1 {[%clk 0:00:05.1]} 53... Rg1
{[%clk 0:00:05.1]} 54. Rf1 {[%clk 0:00:01.6]} 54... Rxf1 {[%clk 0:00:04.8]} 55.
h7 {[%clk 0:00:02.5]} 55... Rh1 {[%clk 0:00:05.4]} 56. h8=Q {[%clk 0:00:03.4]}
56... Rxh8 {[%clk 0:00:05]} 57. Kg7 {[%clk 0:00:03.9]} 57... f1=Q {[%clk
0:00:05.6]} 58. Kxh8 {[%clk 0:00:03.8]} 58... e4 {[%clk 0:00:06.5]} 59. Kg7
{[%clk 0:00:04.7]} 59... e3 {[%clk 0:00:07]} 60. Kh8 {[%clk 0:00:05.6]} 60... e2
{[%clk 0:00:07.4]} 61. Kg7 {[%clk 0:00:06.5]} 61... e1=Q {[%clk 0:00:07.8]} 62.
Kg6 {[%clk 0:00:07.4]} 62... Qee2 {[%clk 0:00:08.2]} 63. Kg5 {[%clk 0:00:08.3]}
63... Qeg2+ {[%clk 0:00:08.5]} 64. Kh6 {[%clk 0:00:09.2]} 64... Qfh1# {[%clk
0:00:09]} 0-1

[Event "Late-Titled-Tuesday-Blitz-October-24-2023"]
[Site "Chess.com"]
[Date "2023.10.24"]
[Round "8"]
[White "WPWPWP-2015"]
[Black "ellatambien"]
[Result "0-1"]
[WhiteElo "2594"]
[BlackElo "2659"]
[TimeControl "180+1"]
[EndTime "15:27:31 PDT"]
[Termination "ellatambien won by resignation"]

1. e4 {[%clk 0:02:59.7]} 1... e5 {[%clk 0:03:00.1]} 2. Nf3 {[%clk 0:02:58.4]}
2... Nc6 {[%clk 0:02:59.8]} 3. Bb5 {[%clk 0:02:57.8]} 3... Bc5 {[%clk
0:02:58.7]} 4. O-O {[%clk 0:02:56.9]} 4... Qf6 {[%clk 0:02:57.6]} 5. h3 {[%clk
0:02:52.4]} 5... Nge7 {[%clk 0:02:56.4]} 6. c3 {[%clk 0:02:51.3]} 6... O-O
{[%clk 0:02:55.6]} 7. d3 {[%clk 0:02:49.9]} 7... h6 {[%clk 0:02:54.8]} 8. Be3
{[%clk 0:02:49.3]} 8... Bb6 {[%clk 0:02:52.3]} 9. Nbd2 {[%clk 0:02:48.6]} 9...
d5 {[%clk 0:02:46.4]} 10. Bxb6 {[%clk 0:02:45.8]} 10... axb6 {[%clk 0:02:45.4]}
11. exd5 {[%clk 0:02:45]} 11... Nxd5 {[%clk 0:02:43.8]} 12. Ne4 {[%clk
0:02:44.3]} 12... Qg6 {[%clk 0:02:41.6]} 13. Bxc6 {[%clk 0:02:39.9]} 13... bxc6
{[%clk 0:02:24.7]} 14. Nxe5 {[%clk 0:02:36.5]} 14... Qe6 {[%clk 0:02:25.2]} 15.
Nf3 {[%clk 0:02:20.3]} 15... Nf4 {[%clk 0:02:22.6]} 16. Ng3 {[%clk 0:02:14.6]}
16... Rxa2 {[%clk 0:02:09.1]} 17. Rxa2 {[%clk 0:02:05.4]} 17... Qxa2 {[%clk
0:02:10]} 18. Qd2 {[%clk 0:02:03.1]} 18... Ng6 {[%clk 0:02:04.1]} 19. Re1 {[%clk
0:02:01.2]} 19... c5 {[%clk 0:02:00.9]} 20. d4 {[%clk 0:01:56.4]} 20... Rd8
{[%clk 0:01:57.2]} 21. Ne5 {[%clk 0:01:43.6]} 21... Nxe5 {[%clk 0:01:52.6]} 22.
Rxe5 {[%clk 0:01:42.7]} 22... cxd4 {[%clk 0:01:52.9]} 23. cxd4 {[%clk
0:01:40.9]} 23... Be6 {[%clk 0:01:53]} 24. Qc3 {[%clk 0:01:34.6]} 24... Rd7
{[%clk 0:01:48.1]} 25. Nh5 {[%clk 0:01:27.8]} 25... Qb3 {[%clk 0:01:43]} 26. Nf4
{[%clk 0:01:05.8]} 26... Qxc3 {[%clk 0:01:36.7]} 27. bxc3 {[%clk 0:01:05.2]}
27... Bc4 {[%clk 0:01:37.6]} 28. Re8+ {[%clk 0:01:00]} 28... Kh7 {[%clk
0:01:37.9]} 29. f3 {[%clk 0:00:56.1]} 29... b5 {[%clk 0:01:35]} 30. Rb8 {[%clk
0:00:51.1]} 30... Re7 {[%clk 0:01:31.5]} 31. Kf2 {[%clk 0:00:50]} 31... g5
{[%clk 0:01:28.2]} 32. Nh5 {[%clk 0:00:49.7]} 32... Re2+ {[%clk 0:01:26.9]} 33.
Kg1 {[%clk 0:00:41.9]} 33... Re3 {[%clk 0:01:19.9]} 34. f4 {[%clk 0:00:24.5]}
34... Kg6 {[%clk 0:01:16.1]} 35. g4 {[%clk 0:00:23.5]} 35... f5 {[%clk
0:01:09.3]} 36. Rf8 {[%clk 0:00:21.2]} 36... fxg4 {[%clk 0:01:06.6]} 37. hxg4
{[%clk 0:00:18.2]} 37... gxf4 {[%clk 0:01:06.4]} 38. Nxf4+ {[%clk 0:00:16.7]}
38... Kg5 {[%clk 0:01:06.5]} 39. Ng2 {[%clk 0:00:10.2]} 39... Rxc3 {[%clk
0:01:03.3]} 40. Rc8 {[%clk 0:00:08]} 40... Bd5 {[%clk 0:00:59.4]} 41. Ne1 {[%clk
0:00:05.4]} 41... Kxg4 {[%clk 0:00:56]} 42. Kf2 {[%clk 0:00:05.1]} 42... Kf4
{[%clk 0:00:53.9]} 43. Rf8+ {[%clk 0:00:04.6]} 43... Ke4 {[%clk 0:00:54]} 44.
Rd8 {[%clk 0:00:04.1]} 44... Kxd4 {[%clk 0:00:52.2]} 45. Rb8 {[%clk 0:00:04.1]}
45... c6 {[%clk 0:00:50.6]} 46. Ke2 {[%clk 0:00:04.2]} 46... Bc4+ {[%clk
0:00:49.3]} 47. Kd2 {[%clk 0:00:04.3]} 47... Rh3 {[%clk 0:00:46.8]} 48. Nc2+
{[%clk 0:00:03.8]} 48... Kc5 {[%clk 0:00:47.3]} 49. Rf8 {[%clk 0:00:03.8]} 49...
b4 {[%clk 0:00:44.1]} 50. Rf5+ {[%clk 0:00:03]} 50... Bd5 {[%clk 0:00:44.3]} 51.
Ne3 {[%clk 0:00:03]} 51... b3 {[%clk 0:00:42.6]} 52. Rf1 {[%clk 0:00:03]} 52...
Kb4 {[%clk 0:00:40.8]} 53. Kd3 {[%clk 0:00:03]} 53... c5 {[%clk 0:00:35.1]} 54.
Rf4+ {[%clk 0:00:02.5]} 54... Ka3 {[%clk 0:00:34.6]} 55. Rf5 {[%clk 0:00:02.6]}
55... c4+ {[%clk 0:00:33.4]} 56. Kd4 {[%clk 0:00:02.4]} 56... Be6 {[%clk
0:00:32.3]} 57. Ra5+ {[%clk 0:00:02.4]} 57... Kb2 {[%clk 0:00:29.5]} 58. Ra6
{[%clk 0:00:02.5]} 58... Bf7 {[%clk 0:00:27]} 59. Ra7 {[%clk 0:00:02.7]} 59...
Rf3 {[%clk 0:00:27]} 60. Ke4 {[%clk 0:00:01.9]} 60... Rf2 {[%clk 0:00:25.5]} 61.
Ng4 {[%clk 0:00:01.7]} 61... Bg6+ {[%clk 0:00:23.1]} 62. Ke3 {[%clk 0:00:01.7]}
62... Rf7 {[%clk 0:00:22.3]} 63. Ne5 {[%clk 0:00:02]} 63... Rxa7 {[%clk
0:00:22.1]} 64. Nxc4+ {[%clk 0:00:02.1]} 64... Kc1 {[%clk 0:00:21.4]} 65. Ne5
{[%clk 0:00:01.8]} 65... b2 {[%clk 0:00:21.5]} 66. Nxg6 {[%clk 0:00:01.9]} 66...
b1=Q {[%clk 0:00:21.9]} 67. Nf4 {[%clk 0:00:02.5]} 67... Ra3+ {[%clk 0:00:21.3]}
68. Kf2 {[%clk 0:00:02.7]} 68... Qe4 {[%clk 0:00:19]} 69. Ne2+ {[%clk
0:00:02.8]} 69... Kd2 {[%clk 0:00:18.5]} 70. Kg1 {[%clk 0:00:03]} 70... Qxe2
{[%clk 0:00:17.7]} 71. Kh1 {[%clk 0:00:03.2]} 71... Rh3+ {[%clk 0:00:17]} 0-1

[Event "Late-Titled-Tuesday-Blitz-October-24-2023"]
[Site "Chess.com"]
[Date "2023.10.24"]
[Round "8"]
[White "louis198"]
[Black "Beca95"]
[Result "0-1"]
[WhiteElo "2661"]
[BlackElo "2917"]
[TimeControl "180+1"]
[EndTime "15:27:36 PDT"]
[Termination "Beca95 won by resignation"]

1. d4 {[%clk 0:03:00.1]} 1... Nf6 {[%clk 0:02:59.7]} 2. Bf4 {[%clk 0:03:00.4]}
2... e6 {[%clk 0:02:56.8]} 3. e3 {[%clk 0:03:00.8]} 3... c5 {[%clk 0:02:56.6]}
4. c3 {[%clk 0:03:00.9]} 4... Nc6 {[%clk 0:02:55.5]} 5. Nd2 {[%clk 0:03:00.1]}
5... d5 {[%clk 0:02:51.4]} 6. Ngf3 {[%clk 0:02:59.6]} 6... Nh5 {[%clk
0:02:50.7]} 7. Bg3 {[%clk 0:02:59]} 7... Nxg3 {[%clk 0:02:47.4]} 8. hxg3 {[%clk
0:02:59.9]} 8... Qb6 {[%clk 0:02:47.6]} 9. Qb3 {[%clk 0:02:58.5]} 9... g6 {[%clk
0:02:47.8]} 10. Bb5 {[%clk 0:02:50.6]} 10... Bg7 {[%clk 0:02:43]} 11. O-O {[%clk
0:02:48]} 11... O-O {[%clk 0:02:35.2]} 12. Bxc6 {[%clk 0:02:47.3]} 12... Qxc6
{[%clk 0:02:31.2]} 13. Ne5 {[%clk 0:02:46.5]} 13... Qc7 {[%clk 0:02:31.3]} 14.
Ndf3 {[%clk 0:02:41.1]} 14... f6 {[%clk 0:02:24]} 15. Ng4 {[%clk 0:02:36.8]}
15... c4 {[%clk 0:02:24.3]} 16. Qc2 {[%clk 0:02:36.6]} 16... e5 {[%clk
0:02:24.6]} 17. Ngh2 {[%clk 0:02:36.4]} 17... e4 {[%clk 0:02:24.1]} 18. Nd2
{[%clk 0:02:36.5]} 18... f5 {[%clk 0:02:24.2]} 19. b3 {[%clk 0:02:32.1]} 19...
Be6 {[%clk 0:02:23.5]} 20. bxc4 {[%clk 0:02:31.3]} 20... dxc4 {[%clk 0:02:24.4]}
21. Rfb1 {[%clk 0:02:30.9]} 21... Bd5 {[%clk 0:02:16.9]} 22. a4 {[%clk
0:02:29.1]} 22... h5 {[%clk 0:02:13.5]} 23. Rb5 {[%clk 0:02:28.7]} 23... Qd7
{[%clk 0:02:12.5]} 24. Nhf1 {[%clk 0:02:24.2]} 24... Rac8 {[%clk 0:02:10.6]} 25.
Rab1 {[%clk 0:02:23.7]} 25... Rc7 {[%clk 0:02:09.2]} 26. a5 {[%clk 0:02:15]}
26... g5 {[%clk 0:01:58]} 27. Qd1 {[%clk 0:02:12.6]} 27... Qf7 {[%clk
0:01:45.8]} 28. Rxd5 {[%clk 0:02:07.6]} 28... Qxd5 {[%clk 0:01:46.7]} 29. Qxh5
{[%clk 0:02:07.7]} 29... g4 {[%clk 0:01:45.1]} 30. Rb4 {[%clk 0:01:59.4]} 30...
Rfc8 {[%clk 0:01:41.2]} 31. Nh2 {[%clk 0:01:55.6]} 31... Qf7 {[%clk 0:01:41.1]}
32. Qg5 {[%clk 0:01:49.3]} 32... Rc6 {[%clk 0:01:36.2]} 33. Rb5 {[%clk
0:01:42.7]} 33... Rf8 {[%clk 0:01:34.8]} 34. Nhf1 {[%clk 0:01:19.5]} 34... a6
{[%clk 0:01:32.8]} 35. Rb4 {[%clk 0:01:14.8]} 35... Kh7 {[%clk 0:01:31]} 36. d5
{[%clk 0:01:04]} 36... Rh6 {[%clk 0:01:10.5]} 37. Rxc4 {[%clk 0:00:58.7]} 37...
Be5 {[%clk 0:00:59.9]} 38. Rxe4 {[%clk 0:00:38.1]} 38... Rg8 {[%clk 0:00:49.4]}
39. Qxh6+ {[%clk 0:00:33]} 39... Kxh6 {[%clk 0:00:50.3]} 40. Rxe5 {[%clk
0:00:33.5]} 40... Kg7 {[%clk 0:00:48.6]} 41. e4 {[%clk 0:00:32.2]} 41... fxe4
{[%clk 0:00:39]} 42. Ne3 {[%clk 0:00:31.7]} 42... Re8 {[%clk 0:00:25.1]} 43. Rf5
{[%clk 0:00:26.2]} 43... Qc7 {[%clk 0:00:18.4]} 44. Ndc4 {[%clk 0:00:25.4]}
44... Qd7 {[%clk 0:00:12.5]} 45. Rf4 {[%clk 0:00:25]} 45... Qa4 {[%clk
0:00:07.5]} 46. Rxg4+ {[%clk 0:00:25.1]} 46... Kf8 {[%clk 0:00:08]} 47. Rf4+
{[%clk 0:00:24.8]} 47... Ke7 {[%clk 0:00:07.5]} 48. Rxe4+ {[%clk 0:00:24.6]}
48... Kd8 {[%clk 0:00:08]} 49. Rd4 {[%clk 0:00:21.3]} 49... Qa1+ {[%clk
0:00:08.1]} 50. Rd1 {[%clk 0:00:19.5]} 50... Qxc3 {[%clk 0:00:08.5]} 51. d6
{[%clk 0:00:16.7]} 51... Re4 {[%clk 0:00:08.1]} 52. Nb6 {[%clk 0:00:15]} 52...
Qxa5 {[%clk 0:00:07]} 53. Nbd5 {[%clk 0:00:13.2]} 53... Qc5 {[%clk 0:00:07.6]}
54. Nf4 {[%clk 0:00:11.5]} 54... Rxe3 {[%clk 0:00:06.9]} 55. fxe3 {[%clk
0:00:11.3]} 55... Qxe3+ {[%clk 0:00:07.5]} 56. Kh2 {[%clk 0:00:11.9]} 56... Kd7
{[%clk 0:00:08]} 57. Rd3 {[%clk 0:00:11.4]} 57... Qe5 {[%clk 0:00:07.8]} 58. Rd5
{[%clk 0:00:10.7]} 58... Qh8+ {[%clk 0:00:07.4]} 59. Rh5 {[%clk 0:00:10.8]}
59... Qg7 {[%clk 0:00:07.4]} 60. Rd5 {[%clk 0:00:09.4]} 60... b5 {[%clk
0:00:07.4]} 61. g4 {[%clk 0:00:09.7]} 61... Qh6+ {[%clk 0:00:06.3]} 62. Kg3
{[%clk 0:00:09.8]} 62... b4 {[%clk 0:00:06.9]} 63. g5 {[%clk 0:00:10]} 63... Qg7
{[%clk 0:00:07.4]} 64. Nh5 {[%clk 0:00:09.4]} 64... Qc3+ {[%clk 0:00:06.6]} 65.
Kf4 {[%clk 0:00:08.9]} 65... Qc4+ {[%clk 0:00:06.3]} 66. Ke5 {[%clk 0:00:09]}
66... Qe2+ {[%clk 0:00:06.3]} 67. Kd4 {[%clk 0:00:09.1]} 67... Qxh5 {[%clk
0:00:06.8]} 0-1